Cogmind - Beta 13 @@@ ROGUE MODE // 2024.04.04 @ 16:38:15 Player: Tanker Result: Destroyed by D-53 Grenadier with Mini Grenade Launcher Performance ------------- Evolutions (0) 0 Regions Visited (2) 400 Robots Destroyed (23) 115 Value Destroyed (435) 435 Prototype IDs (0) 0 Alien Tech Used (0) 0 Bonus (0) 0 TOTAL SCORE: 950 Bonus ------- None Cogmind --------- Core Integrity 0/250 Matter 300/300 Energy 100/100 System Corruption 0% Temperature Cool (0) Movement Core (1350) Ox26 Location -10/Mines Parts ------- > --- POWER (1) -------- (None) > --- PROPULSION (2) --- (None) > --- UTILITY (2) ------ Huge Storage Unit Hacking Suite > --- WEAPON (2) ------- Small Laser > --- INVENTORY (25) --- Ion Engine Light Ion Engine Light Ion Engine Light Ion Engine Small Storage Unit Structural Scanner Sensor Array Signal Interpreter Targeting Computer Light Assault Rifle Light Assault Rifle Mining Laser Peak State ------------ > --- POWER ------------ Ion Engine > --- PROPULSION ------- Light Treads Light Treads > --- UTILITY ---------- Small Storage Unit Hacking Suite > --- WEAPON ----------- Light Assault Rifle Light Assault Rifle > --- INVENTORY -------- Ion Engine Light Ion Engine Small Laser [Rating: 9] Favorites ----------- Power Light Ion Engine Engine Light Ion Engine Propulsion Light Treads Treads Light Treads Utility Hacking Suite Storage Huge Storage Unit Hackware Hacking Suite Weapon Light Assault Rifle Energy Gun Small Laser Ballistic Gun Light Assault Rifle Launcher Grenade Launcher Build | -11 -10 -10 ------- Run | Yrd Mat Min Slots Evolved . | . . . Power . | . . . Propulsion . | . . . Utility . | . . . Weapon . | . . . Parts Attached 12 | 6 3 3 Power 2 | 1 . 1 Engine 2 | 1 . 1 Core . | . . . Reactor . | . . . Propulsion 2 | 2 . . Treads 2 | 2 . . Leg . | . . . Wheel . | . . . Hover . | . . . Flight . | . . . Utility 3 | 1 2 . Device . | . . . Storage 2 | 1 1 . Processor . | . . . Hackware 1 | . 1 . Protection . | . . . Artifact . | . . . Weapon 5 | 2 1 2 Energy Gun 1 | . . 1 Energy Cannon . | . . . Ballistic Gun 3 | 2 . 1 Ballistic Cannon . | . . . Launcher 1 | . 1 . Special Weapon . | . . . Impact Weapon . | . . . Slashing Weapon . | . . . Piercing Weapon . | . . . Special Melee Weapon . | . . . Unidentified Prototypes . | . . . Parts Lost 7 | . 1 6 Power 2 | . . 2 Propulsion 2 | . 1 1 Utility . | . . . Weapon 3 | . . 3 Highest Loss Streak 3 | . 1 3 To Critical Strikes . | . . . Average Slot Usage (%) 81 | . 90 73 Engine 13 | . 14 13 Treads 10 | . 19 3 Storage 14 | . 14 14 Hackware 13 | . 13 14 Energy Gun 5 | . . 10 Ballistic Gun 17 | . 22 13 Launcher 4 | . 5 3 Naked Turns . | . . . Heaviest Build 89 | 12 89 87 Greatest Support 40 | 40 40 20 Greatest Overweight (x) 28 | . 4 28 Average Overweight (x) 4 | . 1 16 Largest Inventory Capacity 25 | 8 25 25 Average Capacity 21 | 7 17 25 Most Carried 12 | 2 10 12 Average Carried 9 | 1 7 11 Final Capacity 25 | 8 25 25 Final Carried 12 | 2 10 12 Class Distribution -------------------- 100% | Mutant Dominant Class ---------------- Mutant | -10/Materials Mutant | -10/Mines Resources | -11 -10 -10 ----------- Run | Yrd Mat Min Matter Collected 525 | 255 179 91 Remotely . | . . . Salvage Created 588 | . 535 53 Parts 49 | . 38 11 Haulers Intercepted . | . . . Recyclers Shooed 1 | . 1 . Parts Field Recycled . | . . . Retrieved Matter . | . . . Parts Self-Destructed . | . . . Prevented . | . . . Kills | -11 -10 -10 ------- Run | Yrd Mat Min Combat Hostiles Destroyed 16 | . 10 6 Guns 11 | . 8 3 AOE 5 | . 2 3 Classes Destroyed 6 | . 6 . Builder 1 | . 1 . Recycler 2 | . 2 . Operator 3 | . 3 . Watcher 1 | . 1 . Swarmer 9 | . 3 6 Grunt 7 | . 7 . Best Kill Streak 5 | . 5 3 Combat Bots Only 4 | . 4 3 Max Kills in Single Turn 2 | . 2 2 Gunslinging 1 | . . 1 Exploded 1 | . 1 1 Melee . | . . . Uniques/NPCs Destroyed . | . . . Combat | -11 -10 -10 -------- Run | Yrd Mat Min Hostile Shots Fired 114 | . 70 44 Missed 23 | . 16 7 Damage Taken 991 | . 576 415 Core 256 | . 90 166 Absorbed by Shields . | . . . Core Remaining (%) 100 | 100 . . Volleys Fired 93 | . 63 30 Largest 2 | . 2 2 Hottest 60 | . 50 60 Shots Fired 162 | . 124 38 Gun 153 | . 120 33 Cannon . | . . . Launcher 9 | . 4 5 Special . | . . . Kinetic 140 | . 120 20 Thermal 13 | . . 13 Explosive 9 | . 4 5 Electromagnetic . | . . . Robot Hit Streak 7 | . 7 3 Robot Miss Streak 4 | . 4 4 Penetration Max . | . . . Secondary Targets 3 | . 2 1 Max Gunslinging Chain 1 | . 1 1 Shots Hit Robots 83 | . 71 12 Core Hits 47 | . 36 11 Critical Kills . | . . . Critical Parts Destroyed 2 | . 2 . Critical Strikes 2 | . 2 . Destroy 2 | . 2 . Melee Attacks . | . . . Impact . | . . . Slashing . | . . . Piercing . | . . . Sneak Attacks . | . . . Combat Hostiles . | . . . Follow-up Attacks . | . . . Damage Inflicted 1067 | . 791 276 Guns 722 | . 598 124 Cannons . | . . . Explosions 345 | . 193 152 Melee . | . . . Ramming . | . . . Kinetic 632 | . 598 34 Thermal 90 | . . 90 Explosive 345 | . 193 152 Electromagnetic . | . . . Impact . | . . . Slashing . | . . . Piercing . | . . . Highest Corruption . | . . . Average Corruption . | . . . Corruption Purged . | . . . Corruption Blocked . | . . . Overload Shots . | . . . Overflow Damage 18 | . . 18 Projectiles . | . . . Explosions 18 | . . 18 Melee . | . . . Knockbacks . | . . . Impact . | . . . Kinetic . | . . . Secondary . | . . . Self-Inflicted Damage . | . . . Shots . | . . . Rammed . | . . . Targets Rammed . | . . . Kicked . | . . . Crushed . | . . . Highest Temperature 25 | . 25 20 Average Temperature 11 | . 11 13 Received Heat Transfer 219 | . 219 . Siege Activations . | . . . Robots Corrupted . | . . . Combat Hostiles . | . . . Parts Fried . | . . . Impact Corruptions . | . . . Robots Melted . | . . . Combat Hostiles . | . . . Parts Melted 1 | . . 1 Heat Transferred 200 | . . 200 Parts Sabotaged . | . . . Parts Stolen . | . . . Parts Stripped . | . . . Power Chain Reactions . | . . . Alert | -11 -10 -10 ------- Run | Yrd Mat Min Peak Influence 165 | . 165 70 Initial . | . . . Average 27 | . 37 19 Maximum Alert Level . | . . . Low Security (%) 100 | 100 100 100 Level 1 . | . . . Level 2 . | . . . Level 3 . | . . . Level 4 . | . . . Level 5 . | . . . High Security . | . . . Max Security . | . . . Squads Dispatched 3 | . 3 . Investigation 1 | . 1 . Extermination . | . . . Reinforcement 2 | . 2 . Assault . | . . . Garrison . | . . . Intercept . | . . . Searches Triggered . | . . . Construction Impeded . | . . . Haulers Reinforced . | . . . Active Scanning Responses . | . . . Cargo Convoy Interrupts . | . . . Stealth | -11 -10 -10 --------- Run | Yrd Mat Min Distress Signals 4 | . 4 . Communications Jammed . | . . . Distress Signals . | . . . Times Spotted 34 | . 27 7 Peak Tracking Total 5 | . 5 3 Tactical Retreats . | . . . Traps | -11 -10 -10 ------- Run | Yrd Mat Min Traps Triggered . | . . . Indirectly . | . . . Trap Hack Attempts . | . . . Triggered . | . . . Disarmed 4 | . 4 . Reprogrammed . | . . . Reused . | . . . Traps Extracted . | . . . Installed . | . . . Triggered . | . . . Machines | -11 -10 -10 ---------- Run | Yrd Mat Min Machines Disabled . | . . . Max in Single Turn . | . . . Machines Repaired . | . . . Machines Dismantled . | . . . Machines Sabotaged . | . . . Overloaded Fab Kills . | . . . Hacking | -11 -10 -10 --------- Run | Yrd Mat Min Machines Accessed 3 | . 3 . Terminals 3 | . 3 . Fabricators . | . . . Repair Stations . | . . . Recycling Units . | . . . Scanalyzers . | . . . Garrison Access . | . . . Total Hacks 9 | . 9 . Successful 3 | . 3 . Failed 6 | . 6 . Catastrophic 1 | . 1 . Database Lockouts . | . . . Manual . | . . . Terminals 9 | . 9 . Fabricators . | . . . Repair Stations . | . . . Recycling Units . | . . . Scanalyzers . | . . . Garrison Access . | . . . Terminal Hacks 3 | . 3 . Disarm Traps 1 | . 1 . Recall Investigation 1 | . 1 . Recall Reinforcements 1 | . 1 . Fabricator Hacks . | . . . Repair Station Hacks . | . . . Recycling Unit Hacks . | . . . Scanalyzer . | . . . Garrison Access Hacks . | . . . Unauthorized Hacks . | . . . Terminals . | . . . Fabricators . | . . . Repair Stations . | . . . Recycling Units . | . . . Scanalyzers . | . . . Garrison Access . | . . . Data Cores Recovered 1 | . 1 . Used . | . . . Hacking Detections 3 | . 3 . Full Trace Events 2 | . 2 . Feedback Events . | . . . Feedback Blocked . | . . . Robot Schematics Acquired . | . . . Robots Built . | . . . Authchips . | . . . Time . | . . . Total Robot Build Rating . | . . . Part Schematics Acquired . | . . . Parts Built . | . . . Authchips . | . . . Time . | . . . Total Part Build Rating . | . . . Parts Repaired . | . . . Time . | . . . Parts Recycled . | . . . Recycled Matter . | . . . Retrieved Matter . | . . . Retrieved Components . | . . . Parts Scanalyzed . | . . . Part Schematics Acquired . | . . . Parts Damaged . | . . . Bothacking | -11 -10 -10 ------------ Run | Yrd Mat Min Used RIF Installer . | . . . Robots Hacked . | . . . Non-combat . | . . . Combat . | . . . Robot Hacks Applied . | . . . Relay Couplers Released . | . . . Fabnet Peak Effective % . | . . . Robots Rewired . | . . . Allies Hacked . | . . . Hacks Repelled . | . . . Allies | -11 -10 -10 -------- Run | Yrd Mat Min Total Allies . | . . . Largest Group . | . . . Highest-Rated Group . | . . . Highest-Rated Ally . | . . . Total Orders . | . . . Ally Attacks . | . . . Total Damage . | . . . Kills . | . . . Allies Corrupted . | . . . Allies Melted . | . . . Intel | -11 -10 -10 ------- Run | Yrd Mat Min Robot Analysis Total . | . . . Derelict Logs Recovered 2 | . . 2 Drone Launches . | . . . Drone Recoveries . | . . . Exploration | -11 -10 -10 ------------- Run | Yrd Mat Min Turns Passed 4502 | 121 2072 2309 Spaces Moved 989 | 73 692 224 Core 126 | 5 . 121 Treads 863 | 68 692 103 Legs . | . . . Wheels . | . . . Hover . | . . . Flight . | . . . Fastest Speed 50 | 50 160 480 Average Speed 430 | 152 274 1003 Slowest Speed 1450 | 160 480 1450 Overloaded Moves . | . . . Propulsion Burnouts . | . . . Robots Hopped . | . . . Cave-ins Triggered . | . . . Exploration Rate (%) 44 | 4 89 40 Regions Visited 2 Branch Regions 1 Pre-discovered Areas 1 | . . 1 Known Exits Taken . | . . . Unknown Exits Taken 2 | 1 1 . Scrap Searched 1 | . . 1 Spaces Dug . | . . . Terrain Destroyed 33 | . 21 12 Melee . | . . . Projectile . | . . . AOE 33 | . 21 12 Terrain Rammed . | . . . Walls Destroyed . | . . . Machines Disabled . | . . . Actions | -11 -10 -10 --------- Run | Yrd Mat Min Total 1107 | 80 765 262 Wait . | . . . Move 987 | 72 691 224 Hop . | . . . Pick Up 15 | 2 8 5 Fast Attach 7 | 6 1 . Attach 3 | . . 3 Detach . | . . . Swap 2 | . 2 . Drop . | . . . Fire 93 | . 63 30 Melee . | . . . Ram . | . . . Kick . | . . . Crush . | . . . Escape Stasis . | . . . Rewire . | . . . Trap . | . . . Miscellaneous . | . . . Route ------- -11/Scrapyard -10/Materials (discovered 4 exits: [*Mat x3] / [*Min]) -10/Mines (discovered 1 exit: [*Mat]) History --------- Turn | Location | Event 32 | -11/Scrapyard | Discovered new exit (range 15) 122 | -11/Scrapyard | Entered Materials 307 | -10/Materials | Build established: Mutant 501 | -10/Materials | Discovered new exit (range 15) 788 | -10/Materials | Discovered new exit (range 9) 1268 | -10/Materials | Discovered new exit (range 9) 1633 | -10/Materials | Discovered new exit (range 16) 2194 | -10/Materials | Entered Mines 2700 | -10/Mines | Discovered new exit (range 10) 2741 | -10/Mines | Core integrity fell below 50% 2762 | -10/Mines | Lost 3 parts (1n2w) 4473 | -10/Mines | Assembled infested the area 4502 | -10/Mines | Core integrity fell below 20% 4503 | -10/Mines | Destroyed by D-53 Grenadier with Mini Grenade Launcher Last Messages --------------- 02757_ Acquired 33 matter. 02800_ Acquired 16 matter. 02829_ Acquired Lgt. Assault Rifle. 02874_ Acquired Lgt. Ion Engine. 02919_ Acquired Lgt. Assault Rifle. 03208_ K-01 Serf collects debris. 03211_ K-01 Serf cleans the Laser Drill. 03442_ Acquired derelict log, extracted data. World map updated: -8/Materials. 04369_ K-01 Serf cleans the Plasma Injector. 04386_ K-01 Serf collects debris. 04473_ ALERT: Infestation in the mines, dispatching Demolisher response squad. 04490_ as-90858 powers down. 04491_ D-53 Grenadier unfolds itself. 04496_ as-90858 destroyed. 04499_ Lgt. Assault Rifle destroyed. 04501_ The unstable cave ceiling collapses. 04501_ K-01 Serf destroyed. 04503_ Lgt. Ion Engine destroyed. Map ----- +----------------------------------------------------+ | ????????????????????????????????????????????????? | | ????????????????????????????????????????????????? | | ????????????????????????????????????????????????? | | ????????????????????????????????????????????????? | | ????????????????????????????????????????????????? | | ????????????????????????????????????????????????? | | ??????????????????????????????????????????####??? | | ?????????????????????????????????????????? #??? | | ??????????????????????????????????????????# #??? | | ??????????????????????????????????????????# #??? | | ??????????????????????????????????????????# #??? | | ?????????????????????????????????####?????# #??? | | ????????????????????????????###?## ##????# #??? | | ???????????????????????????? ### #????# #??? | | ????????????????????????????# ## #????# #??? | | ???????????????????????###### ## ##???# #??? | | ????????????????????#### ## ## ##??# ##?? | | ???????????????????## #### ##? | | ???????????????????# #? | | ???????????????????# ###### ## | | ???????????????????## ##????## | | ????????????????????## % ###????# | | ???????????????????## = #????# | | ???????????????????# ##???## | | ?????????????????### #????## | | ????????????????## @ #??????#### | | ????????????????# #?????## ## | | ????????????????# #?????# ### | | ????????????????## ##?????### # | | ?????????????????## ##???????# ### | | ??????????????????# ##????????# ##?? | | ????????????????? ###?????????## #??? | | ???????????????? """ ???????????### #??? | | ??????????????? """d ????????????### ##?? | | ?????????????? """ ??????????????## ##? | | ????????????? ???????????????# ## | | ???????????? # ?? "???????????????## # | | ????????????######??? ????????????????## | | ????????????????????? ?????????????????### | | ????????????????????? ##???????????????????## | | ????????????????????? #??????????????????????## | | ????????????????????? ????????????????????????## | | ???????????????????????????????????????????????## | | ????????????????????????????????????????????????# | | ????????????????????????????????????????????????? | | ????????????????????????????????????????????????? | | ????????????????????????????????????????????????? | | ????????????????????????????????????????????????? | | ????????????????????????????????????????????????? | | ????????????????????????????????????????????????? | +----------------------------------------------------+ Best States ------------- Heat Dissipation 25 Energy Generation 10 Energy Capacity 250 Matter Stores 300 Matter Capacity 300 Sight Range 16 Terrain Scan Density 10 Evasion (%) 40 Recoil Reduction 2 Offensive Hacking 10 Item Schematics ----------------- None Robot Schematics ------------------ None Fabricated ------------ Nothing Alien Tech Used ----------------- None Achievements -------------- GoHome() Challenges ------------ None Game ------ Seed SapperCloakingGravjet Manual? 0 Play Time 00:14:22 Cumulative 6.1 hours Start 2024.04.04 @ 16:20:45 End 2024.04.04 @ 16:38:15 Sessions 1 Manual Loads 0 Difficulty Rogue Special Mode None Game No. 11 Rogue 11 Adventurer 0 Explorer 0 Win Type - Total 0 Types 0/0/0/0/0/0/0/0/0 Lore% 3 Gallery% 12 Achievement% 12 Wizard Run 0 Options --------- Layout 0 ASCII 0 Keyboard 1 Movement Arrows Keybinds 0 Fullscreen 2 Font 18/SmallcapsGlow Map View 76x50 Zoom Use 0% Tactical HUD 1 Map Filters NONE Filters NONE Steam 1 RUN: 92a908c8-8f6d-46c7-bc47-7d9713e803df